bitfinex/quotes_SOLUSD_20240612
["timestamp","ask_amount","ask_price","bid_price","bid_amount"]
[1718175159609,2.6199,151.03,150.99,2.4504]
[1718175159802,0.51,151.02,150.99,2.4504]
[1718175159985,2.96,151.02,150.98,10.8505]
[1718175160809,0.51,151.02,150.99,2.4504]
[1718175161589,2.96,151.02,150.99,2.4504]
[1718175162703,0.51,151.02,150.99,2.4504]
[1718175163407,2.6202,151.01,150.97,2.4507]
[1718175163703,0.17,151.0,150.98,2.4506]
[1718175163903,0.34,151.0,150.98,2.4506]
[1718175165220,0.34,150.99,150.96,2.4508]
[1718175166284,0.34,150.99,150.98,2.4506]
[1718175166479,0.17,150.99,150.98,2.4506]
[1718175166679,0.17,151.0,150.99,2.4504]
[1718175168718,0.17,151.0,150.98,2.4505]
[1718175169011,0.17,151.0,150.99,2.4504]
[1718175169511,0.17,151.0,150.98,2.4505]
[1718175169894,0.17,151.0,150.97,2.4507]
[1718175170298,0.17,150.99,150.96,8.4]
[1718175170605,0.17,151.01,150.98,2.4506]
[1718175170785,0.34,151.01,150.98,2.4506]
[1718175173208,2.4498,151.04,151.0,2.4503]
[1718175173511,2.4498,151.03,151.0,2.4503]
[1718175174390,0.17,151.02,151.0,2.4503]
[1718175174587,0.34,151.02,151.0,2.4503]
[1718175174900,0.34,151.03,151.01,2.4501]
[1718175175405,0.34,151.03,151.0,10.8502]
[1718175175607,15.2936,151.06,151.02,8.4]
[1718175175909,17.743,151.06,151.02,10.8499]
[1718175176294,2.4495,151.05,151.02,2.4499]
[1718175176513,2.4497,151.04,150.98,11.3214]
[1718175176820,2.4498,151.03,150.99,2.4504]
[1718175177007,2.6198,151.03,150.99,2.4504]
[1718175178619,2.6198,151.03,151.0,2.4502]
[1718175179194,0.34,151.03,151.0,2.4502]
[1718175180322,0.34,151.03,151.01,2.4501]
[1718175180498,0.34,151.03,151.0,2.4502]
[1718175180821,2.4501,151.02,150.98,2.4505]
[1718175180995,0.34,151.01,150.98,2.4505]
[1718175181330,0.51,151.01,150.98,2.4505]
[1718175181520,0.51,151.01,150.99,2.4504]
[1718175181696,0.51,151.01,150.96,22.0579]
[1718175182024,0.51,151.01,150.99,2.4503]
[1718175182202,0.51,151.01,151.0,2.4503]
[1718175183822,0.51,151.01,150.99,2.4504]
[1718175184716,0.34,151.0,150.95,4.9021]
[1718175184913,0.51,150.99,150.97,2.4506]
[1718175185520,0.17,151.0,150.99,2.4504]
[1718175185706,0.17,151.01,150.98,2.4505]
[1718175186011,0.17,151.0,150.99,2.4504]
[1718175188006,0.17,151.0,150.98,2.4506]
[1718175188207,0.51,151.01,150.98,2.4506]
[1718175188920,0.17,150.99,150.97,2.4507]
[1718175189104,0.68,150.99,150.94,11.0992]
[1718175189304,3.1305,150.99,150.95,10.851]
[1718175189504,3.1305,150.99,150.96,2.4509]
[1718175190232,0.68,150.99,150.96,2.4509]
[1718175192219,0.17,150.97,150.95,2.4511]
[1718175192419,9.08,150.97,150.9,20.9739]
[1718175192723,0.17,150.95,150.92,2.4514]
[1718175192906,0.34,150.95,150.92,2.4514]
[1718175193306,2.7911,150.95,150.89,16.3568]
[1718175193609,0.34,150.94,150.93,2.4514]
[1718175193913,0.68,150.94,150.93,2.4514]
[1718175194320,0.17,150.94,150.93,2.4514]
[1718175194526,0.17,150.96,150.94,2.4512]
[1718175194708,0.68,150.96,150.94,2.4512]
[1718175194909,0.68,150.96,150.93,2.4513]
[1718175195419,3.131,150.96,150.93,2.4513]
[1718175197530,11.531,150.96,150.93,2.4513]
[1718175197718,11.531,150.96,150.92,2.4515]
[1718175198809,2.4511,150.95,150.92,2.4515]
[1718175199013,0.68,150.94,150.92,2.4515]
[1718175199545,3.1313,150.94,150.87,7.3571]
[1718175199851,11.5313,150.94,150.91,2.4517]
[1718175200052,9.08,150.94,150.91,2.4517]
[1718175200225,0.68,150.94,150.91,2.4517]
[1718175204153,3.1313,150.94,150.91,2.4517]
[1718175205235,3.1313,150.94,150.9,2.4518]
[1718175205426,3.1313,150.94,150.89,8.4]
[1718175205427,3.1313,150.94,150.91,2.4517]
[1718175206023,0.68,150.94,150.91,2.4517]
[1718175206749,0.68,150.94,150.92,2.4516]
[1718175209051,16.0356,151.0,150.93,8.4]
[1718175209253,16.0356,151.0,150.98,2.4505]
[1718175210456,0.34,150.99,150.98,2.4505]
[1718175210633,0.68,150.99,150.97,2.4507]
[1718175211743,0.68,150.99,150.96,2.4508]
[1718175212249,0.68,150.99,150.97,2.4508]
[1718175213241,8.4,150.98,150.93,2.4513]
[1718175213437,0.51,150.97,150.94,2.4512]
[1718175215738,0.17,150.96,150.94,2.4512]
[1718175216648,0.17,150.96,150.93,2.4513]
[1718175218364,0.17,150.96,150.94,2.4512]
[1718175219062,0.17,150.96,150.91,20.6588]
[1718175219063,11.0209,150.96,150.91,4.9035]
[1718175219354,0.17,150.94,150.92,2.4515]
[1718175219553,11.1913,150.94,150.89,4.904]
[1718175219766,0.17,150.92,150.91,2.4517]
[1718175219958,0.34,150.92,150.91,2.4517]
[1718175220160,0.68,150.92,150.91,2.4517]
[1718175221158,8.4,150.94,150.91,2.4517]
[1718175221358,0.17,150.94,150.93,2.4514]
[1718175221666,0.68,150.94,150.92,2.4515]
[1718175224357,0.68,150.94,150.89,8.4]
[1718175224358,3.1313,150.94,150.89,8.4]
[1718175224561,0.68,150.94,150.89,8.4]
[1718175224863,9.08,150.94,150.91,2.4517]
[1718175225647,11.5313,150.94,150.91,2.4517]
[1718175226452,9.08,150.94,150.91,2.4517]
[1718175230672,15.5681,150.99,150.91,18.207]
[1718175230875,10.8508,150.97,150.93,2.4514]
[1718175231173,8.4,150.96,150.94,2.4512]
[1718175231375,8.4,150.96,150.93,2.4513]
[1718175232175,0.68,150.95,150.92,2.4516]
[1718175232370,9.08,150.95,150.92,2.4516]
[1718175232556,0.68,150.95,150.92,2.4516]
[1718175233990,3.1311,150.95,150.92,2.4516]
[1718175234357,11.5311,150.95,150.92,2.4516]
[1718175234759,11.5311,150.95,150.91,2.4516]
[1718175234958,3.1311,150.95,150.91,2.4516]
[1718175235391,11.5311,150.95,150.91,2.4516]
[1718175237666,3.1311,150.95,150.92,2.4516]
[1718175238982,11.5311,150.95,150.91,2.4517]
[1718175239671,11.5312,150.95,150.91,2.4517]
[1718175239872,9.08,150.95,150.91,2.4517]
[1718175240380,0.68,150.95,150.92,2.4516]
[1718175241261,3.1311,150.95,150.92,2.4516]
[1718175241460,3.1311,150.95,150.91,2.4517]
[1718175241681,0.68,150.95,150.92,2.4516]
[1718175241980,9.08,150.95,150.92,2.4516]
[1718175242184,18.0186,150.99,150.95,2.451]
[1718175242487,2.4506,150.98,150.94,2.4512]
[1718175242965,10.8506,150.98,150.94,2.4512]
[1718175243580,8.4,150.98,150.94,2.4512]
[1718175243767,10.8508,150.97,150.93,2.4514]
[1718175243968,0.34,150.96,150.93,2.4514]
[1718175245479,0.34,150.96,150.94,2.4513]
[1718175249280,0.34,150.96,150.93,2.4513]
[1718175249577,0.17,150.94,150.89,22.0681]
[1718175249759,0.34,150.94,150.91,2.4516]
[1718175249964,0.34,150.94,150.92,2.4515]
[1718175253069,0.34,150.94,150.93,2.4514]
[1718175253271,0.68,150.94,150.93,2.4514]
[1718175254678,15.5681,150.99,150.95,2.451]
[1718175254987,26.4186,150.99,150.95,2.4509]
[1718175255188,26.4186,150.99,150.96,2.4509]
[1718175255395,26.4186,150.99,150.95,2.451]
[1718175256068,0.51,150.98,150.95,2.451]
[1718175256370,0.51,150.98,150.93,13.3028]
[1718175256371,15.5681,150.99,150.96,2.4509]
[1718175256567,10.85,151.02,150.98,2.4505]
[1718175256767,2.45,151.02,150.98,2.4505]
[1718175256967,15.2016,151.03,151.02,2.45]
[1718175257167,2.4495,151.05,151.01,2.45]
[1718175257382,10.8494,151.06,151.02,2.4499]
[1718175257797,15.551,151.07,151.02,2.4499]
[1718175257798,18.0002,151.07,151.02,2.4499]
[1718175258013,26.4003,151.07,151.02,2.4499]
[1718175258304,2.4493,151.06,151.02,2.4499]
[1718175259177,0.68,151.05,151.02,2.4499]
[1718175262085,3.1295,151.05,151.01,2.45]
[1718175264495,0.68,151.05,151.02,2.4499]
[1718175264693,0.68,151.05,151.01,8.4]
[1718175264694,0.68,151.05,151.03,2.4498]
[1718175266277,0.68,151.05,151.02,2.4499]
[1718175266894,3.1295,151.05,151.01,2.45]
[1718175269175,11.5295,151.05,151.01,2.45]
[1718175269377,10.8496,151.04,151.0,2.4502]
[1718175269577,0.68,151.03,151.0,2.4502]
[1718175270601,0.68,151.03,151.01,2.4501]
[1718175273303,0.68,151.03,151.02,2.45]
[1718175274587,0.68,151.03,150.98,6.0841]
[1718175274782,8.4,151.02,150.98,2.4505]
[1718175274987,0.68,151.01,150.98,2.4505]
[1718175275289,0.68,151.01,150.99,2.4504]
[1718175276601,0.68,151.01,150.98,2.4505]
[1718175277491,0.68,151.01,150.99,2.4504]
[1718175277800,0.68,151.01,150.95,7.3529]
[1718175277999,9.08,151.01,150.95,15.7529]
[1718175278205,9.08,151.01,150.98,2.4506]
[1718175278788,0.17,150.99,150.97,2.4507]
[1718175278983,0.68,150.99,150.97,2.4507]
[1718175279887,0.68,150.99,150.98,2.4506]
[1718175288707,0.68,150.99,150.97,2.4507]
[1718175292410,0.68,150.99,150.98,2.4506]
[1718175293901,0.68,150.99,150.97,2.4507]
[1718175295719,0.68,150.99,150.98,2.4506]
[1718175296607,0.68,150.99,150.97,2.4507]
[1718175297205,0.68,150.99,150.98,2.4506]
[1718175297625,0.68,150.99,150.97,2.4507]
[1718175299639,0.68,150.99,150.96,2.4509]
[1718175300313,0.68,150.99,150.96,2.4508]
[1718175303722,2.4507,150.98,150.94,2.4512]
[1718175303949,2.4507,150.98,150.94,10.8512]
[1718175304220,8.4,150.97,150.9,9.8076]
[1718175304417,2.961,150.96,150.92,2.4515]
[1718175304798,0.51,150.96,150.93,2.4514]
[1718175306948,0.51,150.96,150.94,2.4512]
[1718175307154,0.17,150.95,150.93,2.4514]
[1718175307451,0.17,150.95,150.92,2.4515]
[1718175307836,0.17,150.95,150.93,2.4514]
[1718175308944,0.17,150.96,150.95,2.4511]
[1718175309138,0.17,150.99,150.96,2.4509]
[1718175309452,0.68,150.99,150.96,2.4509]
[1718175310362,3.1304,150.99,150.95,2.451]
[1718175311541,11.5304,150.99,150.95,2.451]
[1718175312046,2.4506,150.98,150.94,2.4512]
[1718175312243,0.68,150.97,150.94,2.4512]
[1718175312842,0.68,150.97,150.95,2.4511]
[1718175313047,0.68,150.97,150.94,2.4512]
[1718175314542,0.68,150.97,150.95,2.4511]
[1718175316056,0.68,150.97,150.94,2.4512]
[1718175319548,0.68,150.97,150.9,21.1076]
[1718175319854,3.1309,150.97,150.93,2.4514]
[1718175320741,9.93822708,150.94,150.93,2.4514]
[1718175322763,9.93822708,150.94,150.92,2.4515]
[1718175323067,9.93822708,150.94,150.91,8.4]
[1718175323256,9.93822708,150.94,150.9,20.0]
[1718175323257,9.93822708,150.94,150.92,2.4515]
[1718175323868,9.93822708,150.94,150.93,2.4514]
[1718175325948,9.93822708,150.94,150.93,10.8514]
[1718175326142,9.93822708,150.94,150.93,23.1087]
[1718175327149,9.93822708,150.94,150.93,24.43141318]
[1718175327343,9.93822708,150.94,150.93,23.1087]
[1718175328154,9.93822708,150.94,150.93,15.7543]
[1718175329567,9.93822708,150.94,150.93,10.8514]
[1718175330750,9.93822708,150.95,150.94,2.4513]
[1718175336870,0.68,150.97,150.94,2.4513]
[1718175337050,9.93801995,150.95,150.94,2.4513]
[1718175339591,10.10801995,150.95,150.93,2.4513]
[1718175339880,9.93801995,150.95,150.93,2.4513]
[1718175340046,9.93801995,150.94,150.93,2.4513]
[1718175345378,9.93801995,150.94,150.93,7.3542]
[1718175345679,9.93801995,150.94,150.93,15.7542]
[1718175346069,9.93801995,150.94,150.93,7.3542]
[1718175346984,0.68,150.97,150.94,2.4511]
[1718175350965,0.68,150.97,150.95,2.4511]
[1718175351160,0.68,150.97,150.96,2.4509]
[1718175351161,0.17,150.97,150.96,2.4509]
[1718175351360,18.8857,151.02,150.98,2.4505]
[1718175351685,16.4357,151.02,151.0,2.4503]
[1718175352668,0.17,151.01,150.99,2.4504]
[1718175352869,0.68,151.01,150.99,2.4504]
[1718175354064,16.4357,151.02,150.99,2.4504]
[1718175354260,2.4499,151.03,150.99,2.4504]
[1718175354491,10.8497,151.04,151.0,2.4503]
[1718175355467,0.34,151.03,151.0,2.4503]
[1718175355673,0.34,151.02,151.0,2.4503]
[1718175355990,0.17,151.02,151.0,2.4503]
[1718175356293,0.34,151.03,151.0,2.4503]
[1718175356584,0.34,151.03,151.01,2.45]
[1718175356789,0.34,151.03,151.0,2.4502]
[1718175356986,2.4496,151.04,151.0,2.4502]
[1718175357193,2.4495,151.05,151.01,2.4501]
[1718175357373,2.4495,151.05,151.01,10.8501]
[1718175358398,0.68,151.04,151.01,10.8501]
[1718175359375,0.68,151.04,151.01,2.4501]
[1718175359576,0.68,151.04,150.97,6.317]
[1718175359775,2.4498,151.03,150.99,10.8503]
[1718175360294,2.4498,151.03,151.0,2.4503]
[1718175360684,3.1297,151.04,151.0,2.4503]
[1718175361191,9.08,151.04,150.98,8.4]
[1718175361399,2.45,151.02,150.98,10.8505]
[1718175361906,2.4499,151.03,150.99,2.4504]
[1718175362087,0.68,151.02,150.99,2.4504]
[1718175362290,3.13,151.02,150.98,10.8505]
[1718175362592,2.4502,151.01,150.97,10.8507]
[1718175362794,3.13,151.02,150.98,2.4506]
[1718175365926,3.13,151.02,150.99,2.4504]
[1718175368219,0.68,151.02,150.99,2.4504]
[1718175369806,2.4504,151.0,150.96,2.4509]
[1718175369994,2.4502,151.01,150.97,8.4]
[1718175370195,2.4502,151.01,150.95,4.9022]
[1718175370383,3.13,151.02,150.98,2.4506]
[1718175371484,0.17,151.0,150.97,2.4507]
[1718175371688,2.4508,150.97,150.91,17.1615]
[1718175372010,0.68,150.96,150.93,2.4513]
[1718175372583,0.68,150.96,150.89,15.879]
[1718175372817,9.08,150.96,150.93,2.4513]
[1718175373018,19.01836835,150.96,150.93,2.4513]
[1718175373401,10.61836835,150.96,150.93,2.4513]
[1718175373725,0.68,150.96,150.93,2.4513]
[1718175374629,21.46926835,150.96,150.92,2.4515]
[1718175375118,0.17,150.94,150.92,2.4515]
[1718175375497,0.17,150.95,150.93,2.4514]
[1718175376600,0.17,150.95,150.94,2.4513]
[1718175378128,0.17,150.95,150.93,2.4513]
[1718175379122,0.17,150.95,150.88,4.9042]
[1718175379322,0.17,150.93,150.89,2.4519]
[1718175379530,0.51,150.93,150.89,2.4519]
[1718175379699,0.68,150.93,150.89,2.4519]
[1718175379900,0.68,150.93,150.9,2.4519]
[1718175380412,0.68,150.93,150.91,2.4517]
[1718175382739,9.93994579,150.95,150.94,2.4513]
[1718175383027,9.93994579,150.97,150.95,2.4511]
[1718175384530,9.93994579,150.97,150.93,13.3028]
[1718175384531,0.68,150.96,150.93,2.4513]
[1718175387711,3.1309,150.96,150.93,2.4513]
[1718175387920,0.68,150.96,150.93,2.4513]
[1718175390441,9.93994579,150.97,150.92,8.4]
[1718175390642,9.93994579,150.97,150.94,8.4]
[1718175390943,9.93994579,150.97,150.95,8.4]
[1718175391551,9.93994579,150.97,150.95,10.851]
[1718175391949,9.93912927,150.97,150.95,10.851]
[1718175392418,10.44912927,150.98,150.95,10.851]
[1718175392619,9.93912927,150.97,150.95,10.851]
[1718175394044,10.44912927,150.98,150.95,10.851]
[1718175394833,10.44912927,150.98,150.94,2.4512]
[1718175395023,2.6208,150.97,150.93,10.8514]
[1718175395359,0.51,150.96,150.93,2.4514]
[1718175396225,0.51,150.96,150.94,2.4512]
[1718175399552,0.51,150.96,150.92,8.4]
[1718175399553,0.17,150.95,150.9,9.8077]
[1718175399732,0.17,150.95,150.92,2.4514]
[1718175405247,2.6211,150.95,150.92,2.4514]
[1718175405455,8.91,150.94,150.91,2.4517]
[1718175405640,0.17,150.93,150.91,2.4517]
[1718175409638,0.17,150.92,150.9,2.4518]
[1718175409849,0.51,150.92,150.9,2.4518]
[1718175410046,0.17,150.91,150.89,2.452]
[1718175410244,0.34,150.91,150.89,2.452]
[1718175410560,0.51,150.91,150.9,2.4519]
[1718175410855,0.68,150.91,150.9,2.4519]
[1718175411369,0.68,150.91,150.89,2.452]
[1718175416258,10.62096255,150.91,150.9,2.4519]
[1718175417248,10.62078402,150.91,150.9,2.4519]
[1718175418364,0.68,150.91,150.9,2.4519]
[1718175418749,10.62085146,150.91,150.9,2.4519]
[1718175420368,9.94085146,150.91,150.9,2.4519]
[1718175420562,9.94085146,150.91,150.9,10.8519]
[1718175420764,9.94085146,150.91,150.9,2.4519]
[1718175426587,16.4475,151.0,150.91,24.5176]
[1718175426755,18.8979,151.0,150.94,8.4]
[1718175426957,16.4475,151.0,150.96,2.4509]
[1718175427260,18.8978,151.0,150.96,2.4509]
[1718175427561,27.2978,151.0,150.96,2.4509]
[1718175428073,2.4505,150.99,150.95,2.451]
[1718175428273,9.9373817,150.96,150.95,2.451]
[1718175428655,9.9373817,150.96,150.95,10.851]
[1718175429375,9.9373817,150.96,150.95,2.451]
[1718175430375,9.9373817,150.97,150.94,2.4512]
[1718175430675,9.9373817,150.96,150.94,2.4512]
[1718175431478,0.17,150.98,150.94,2.4512]
[1718175431479,9.9373817,150.97,150.94,2.4512]
[1718175434478,9.9373817,150.97,150.95,2.4511]
[1718175435159,9.9373817,150.97,150.95,8.4]
[1718175435358,9.9373817,150.98,150.97,2.4508]
[1718175435574,9.9373817,150.99,150.97,10.8508]
[1718175435778,9.9373817,150.99,150.98,10.8506]
[1718175435985,9.9373817,151.0,150.98,10.8506]
[1718175436187,9.9373817,151.01,150.98,10.8506]
[1718175436687,0.17,151.0,150.98,10.8506]
[1718175438485,10.27532824,151.01,150.99,2.4504]
[1718175439383,0.34,151.01,150.99,2.4504]
[1718175440391,0.34,151.01,150.98,10.8506]
[1718175441084,0.34,151.01,150.98,2.4506]
[1718175441287,0.34,151.01,150.98,10.8506]
[1718175442085,0.17,151.01,150.99,2.4503]
[1718175442290,10.27532824,151.02,150.99,2.4503]
[1718175442594,0.34,151.02,150.99,2.4503]
[1718175443271,0.34,151.02,151.0,2.4503]
[1718175443591,9.93532824,151.03,151.02,2.45]
[1718175443771,9.93532824,151.03,151.02,10.85]
[1718175443965,9.93532824,151.04,151.03,2.4498]
[1718175444484,9.93429921,151.04,151.03,2.4498]
[1718175444662,9.93429921,151.05,151.03,2.4498]
[1718175444867,9.93429921,151.06,151.03,2.4498]
[1718175446285,284.7094,151.07,151.03,2.4498]
[1718175446286,0.68,151.05,151.03,2.4498]
[1718175449590,0.68,151.05,151.04,2.4496]
[1718175449972,9.93338849,151.07,151.04,2.4496]
[1718175450985,9.93338849,151.07,151.05,2.4495]
[1718175451189,0.17,151.07,151.05,2.4495]
[1718175451392,0.68,151.07,151.05,2.4495]
[1718175452287,0.51,151.07,151.05,2.4495]
[1718175452594,0.17,151.07,151.05,2.4495]
[1718175454687,0.17,151.07,151.06,2.4493]
[1718175454888,390.63332975,151.08,151.06,2.4493]
[1718175455184,390.63332975,151.08,151.07,2.4491]
[1718175455185,380.7,151.08,151.07,2.4491]
[1718175455390,380.7,151.08,151.06,2.4492]
[1718175455784,2.4487,151.1,151.06,2.4492]
[1718175456586,0.68,151.09,151.06,2.4492]
[1718175456784,3.1288,151.09,151.06,2.4492]
[1718175457184,3.1288,151.09,151.05,10.8494]
[1718175457489,3.1288,151.09,151.05,2.4494]
[1718175457490,11.5288,151.09,151.05,2.4494]
[1718175457689,11.5288,151.09,151.04,2.4495]
[1718175457690,0.17,151.07,151.04,2.4495]
[1718175457889,0.68,151.07,151.05,2.4494]
[1718175458100,0.17,151.07,151.05,2.4494]
[1718175458298,0.17,151.08,151.06,2.4493]
[1718175458596,0.34,151.08,151.05,2.4494]
[1718175458797,0.34,151.07,151.05,2.4494]
[1718175458991,0.34,151.07,151.04,2.4496]
[1718175459891,0.34,151.07,151.05,2.4494]
[1718175461093,0.51,151.07,151.06,2.4493]
[1718175461294,0.68,151.07,151.06,2.4493]
[1718175462702,0.68,151.07,151.05,2.4494]
[1718175464000,0.68,151.07,151.04,8.4]
[1718175464200,0.34,151.06,151.03,2.4498]
[1718175464400,0.34,151.05,151.03,2.4498]
[1718175464593,0.34,151.05,151.02,2.4499]
[1718175464791,0.34,151.05,151.03,2.4498]
[1718175465503,0.51,151.05,151.04,2.4496]
[1718175465806,0.68,151.05,151.04,2.4496]
[1718175470014,0.68,151.05,151.03,2.4497]
[1718175470386,0.17,151.04,151.0,6.3447]
[1718175470593,0.34,151.04,151.01,2.45]
[1718175472110,0.34,151.04,151.02,2.4499]
[1718175472294,10.44093708,151.05,151.04,2.4496]
[1718175472612,10.61093708,151.05,151.04,2.4496]
[1718175473025,0.68,151.05,151.04,2.4496]
[1718175475318,0.68,151.05,151.03,2.4497]
[1718175476396,10.61343501,151.05,151.03,2.4497]
[1718175476597,0.17,151.04,151.02,2.45]
[1718175476815,0.34,151.04,151.02,2.45]
[1718175477297,10.27298082,151.04,151.02,2.45]
[1718175479416,10.27298082,151.04,151.03,2.4498]
[1718175480015,9.93298082,151.04,151.03,2.4498]
[1718175480799,9.93298082,151.04,151.03,10.8498]
[1718175481096,9.93298082,151.05,151.04,2.4496]
[1718175485703,9.93298082,151.05,151.04,15.7489]
[1718175485915,9.93298082,151.07,151.06,2.4493]
[1718175486224,9.93298082,151.08,151.07,2.4491]
[1718175486409,2.4485,151.11,151.07,2.4491]
[1718175486814,9.9302702,151.08,151.07,2.4491]
[1718175487015,2.4485,151.11,151.07,2.4491]
[1718175487219,2.4487,151.1,151.06,8.4]
[1718175487421,2.4487,151.1,151.02,28.4248]
[1718175487422,9.93049996,151.07,151.05,10.8494]
[1718175487601,9.93049996,151.07,151.05,2.4494]
[1718175488224,9.93049996,151.06,151.05,2.4494]
[1718175490035,0.17,151.06,151.0,37.1986]
[1718175490206,9.93242663,151.04,151.01,8.4]
[1718175490400,0.68,151.06,151.03,2.4498]
[1718175491011,0.68,151.06,151.04,2.4496]
[1718175491206,0.34,151.06,151.05,2.4495]
[1718175491406,0.17,151.09,151.06,2.4493]
[1718175491614,3.1288,151.09,151.05,2.4494]
[1718175494713,3.1288,151.09,151.04,2.4495]
[1718175497013,3.1288,151.09,151.04,10.8495]
[1718175497208,9.93165423,151.05,151.04,2.4495]
[1718175497411,9.93165423,151.06,151.05,2.4495]
[1718175497837,9.93165423,151.06,151.04,10.8496]
[1718175498116,9.93165423,151.05,151.04,10.8496]
[1718175500038,9.93165423,151.05,151.04,2.4496]
[1718175500223,0.17,151.07,151.04,2.4496]
[1718175500538,0.68,151.07,151.04,2.4496]
[1718175502117,0.68,151.07,151.0,24.9476]
[1718175502338,9.93206574,151.04,151.01,2.45]
[1718175502663,9.93206574,151.02,151.01,2.4501]
[1718175505266,0.17,151.01,150.99,2.4504]
[1718175505539,0.17,151.01,150.97,2.4508]
[1718175505540,3.1302,151.01,150.97,2.4508]
[1718175505843,3.1302,151.01,150.95,2.4511]
[1718175505844,0.17,150.98,150.95,2.4511]
[1718175506228,0.17,150.98,150.96,2.4509]
[1718175507130,10.10776928,150.97,150.96,2.4509]
[1718175507444,10.61776928,150.97,150.96,2.4509]
[1718175508961,0.68,150.97,150.96,2.4509]
[1718175519864,0.68,150.97,150.95,2.451]
[1718175523563,0.68,150.97,150.96,2.4509]
[1718175524060,0.68,150.97,150.94,8.4]
[1718175524264,0.68,150.97,150.92,2.4515]
[1718175524265,9.08,150.96,150.92,2.4515]
[1718175524761,9.08,150.96,150.93,2.4514]
[1718175525551,0.68,150.96,150.93,2.4514]
[1718175526364,0.68,150.96,150.94,2.4512]
[1718175526695,0.68,150.96,150.92,2.4514]
[1718175526877,9.08,150.96,150.92,2.4514]
[1718175527173,11.5309,150.96,150.92,2.4514]
[1718175527375,9.08,150.96,150.92,2.4514]
[1718175527577,9.08,150.96,150.93,2.4514]
[1718175530774,0.68,150.96,150.91,7.3553]
[1718175530976,0.68,150.96,150.92,20.6577]
[1718175531177,0.68,150.96,150.94,2.4512]
[1718175531363,0.68,150.96,150.93,2.4513]
[1718175533374,0.68,150.96,150.94,2.4512]
[1718175535383,0.68,150.96,150.93,2.4513]
[1718175537581,9.08,150.96,150.93,2.4513]
[1718175539084,0.68,150.96,150.93,2.4513]
[1718175539461,0.68,150.96,150.94,2.4512]
[1718175540271,9.93895806,150.99,150.93,12.2572]
[1718175540474,9.93895806,151.0,150.96,2.4508]
[1718175540674,20.78925806,151.0,150.96,2.4508]
[1718175540867,10.8503,151.0,150.96,2.4508]
[1718175541277,10.8503,151.0,150.95,2.451]
[1718175541477,2.4506,150.98,150.94,2.4512]
[1718175541767,0.17,150.96,150.93,2.4513]
[1718175541966,0.34,150.96,150.93,2.4513]
[1718175543193,0.34,150.96,150.94,2.4512]
[1718175543767,0.34,150.96,150.93,2.4513]
[1718175544682,0.34,150.96,150.94,2.4512]
[1718175545391,0.34,150.96,150.93,2.4514]
[1718175545694,0.17,150.95,150.93,2.4514]
[1718175545871,0.34,150.95,150.93,2.4514]
[1718175547586,0.34,150.95,150.94,2.4513]
[1718175548076,0.17,150.96,150.95,2.4511]
[1718175548274,0.51,150.96,150.95,2.4511]